Cogmind - Beta 13 X2 @@@ ROGUE MODE // 2024.01.05 @ 16:40:33 Player: Minty Result: Destroyed by WW-SOQ(R) with Subdweller Machine Gun Performance ------------- Evolutions (0) 0 Regions Visited (3) 600 Robots Destroyed (8) 40 Value Destroyed (173) 173 Prototype IDs (1) 20 Alien Tech Used (0) 0 Bonus (133) 133 TOTAL SCORE: 966 Bonus ------- Follower Combat Kills 148 Friendly Fire -15 Cogmind --------- Core Integrity 0/250 Matter 246/300 Energy 150/150 System Corruption 0% Temperature Cool (0) Movement Walking (120) Location -10/Subcaves Parts ------- > --- POWER (1) -------- Light Angular Momentum Engine > --- PROPULSION (2) --- Improved Aluminum Leg Improved Aluminum Leg > --- UTILITY (2) ------ Improved Heat Sink Small Storage Unit > --- WEAPON (2) ------- Beam Rifle Makeshift Shrapnel Gun > --- INVENTORY (8) ---- Improved Aluminum Leg Improved Aluminum Leg Makeshift Light Armor Plating Subdweller Beam Cannon Flamer Shrapnel Trap Shrapnel Trap Peak State ------------ > --- POWER ------------ Light Angular Momentum Engine > --- PROPULSION ------- Improved Aluminum Leg Improved Aluminum Leg > --- UTILITY ---------- Improved Heat Sink Small Storage Unit > --- WEAPON ----------- Improved Assault Rifle Makeshift Shrapnel Gun > --- INVENTORY -------- Improved Aluminum Leg Improved Aluminum Leg Makeshift Light Armor Plating Beam Rifle Beam Rifle Subdweller Beam Cannon Shrapnel Trap Shrapnel Trap [Rating: 21] Favorites ----------- Power Light Ion Engine Engine Light Ion Engine Propulsion Improved Aluminum Leg Leg Improved Aluminum Leg Utility Small Storage Unit Device Improved Heat Sink Storage Small Storage Unit Processor Transport Network Coupler Weapon Improved Assault Rifle Energy Gun Small Laser Ballistic Gun Improved Assault Rifle Special Weapon Mining Laser Build | -11 -10 -10 -10 ------- Run | Yrd Mat Min Sub Slots Evolved . | . . . . Power . | . . . . Propulsion . | . . . . Utility . | . . . . Weapon . | . . . . Parts Attached 17 | . 4 2 11 Power 3 | . . . 3 Engine 3 | . . . 3 Core . | . . . . Reactor . | . . . . Propulsion 3 | . 2 . 1 Treads . | . . . . Leg 3 | . 2 . 1 Wheel . | . . . . Hover . | . . . . Flight . | . . . . Utility 3 | . . 1 2 Device 2 | . . . 2 Storage . | . . . . Processor 1 | . . 1 . Hackware . | . . . . Protection . | . . . . Artifact . | . . . . Weapon 8 | . 2 1 5 Energy Gun 1 | . . . 1 Energy Cannon . | . . . . Ballistic Gun 5 | . 2 . 3 Ballistic Cannon . | . . . . Launcher . | . . . . Special Weapon 2 | . . 1 1 Impact Weapon . | . . . . Slashing Weapon . | . . . . Piercing Weapon . | . . . . Special Melee Weapon . | . . . . Unidentified Prototypes 1 | . 1 . . Parts Lost 2 | . . . 2 Power . | . . . . Propulsion . | . . . . Utility . | . . . . Weapon 2 | . . . 2 Highest Loss Streak 1 | . . . 1 To Critical Strikes . | . . . . Average Slot Usage (%) 94 | . 85 87 100 Engine 14 | . 14 14 14 Leg 28 | . 28 28 28 Device 7 | . . . 13 Storage 14 | . 14 14 14 Processor 1 | . . 2 . Ballistic Gun 25 | . 24 27 24 Special Weapon 2 | . . . 3 Naked Turns . | . . . . Heaviest Build 21 | 10 14 14 21 Greatest Support 26 | 20 26 26 26 Greatest Overweight (x) . | . . . . Average Overweight (x) . | . . . . Largest Inventory Capacity 8 | . 8 8 8 Average Capacity 8 | . 8 8 8 Most Carried 8 | . 8 8 8 Average Carried 7 | . 6 6 7 Final Capacity 8 | 8 8 8 8 Final Carried 8 | 6 6 8 7 Class Distribution -------------------- 100% | Mutant Dominant Class ---------------- Mutant | -10/Materials Mutant | -10/Mines Mutant | -10/Subcaves Resources | -11 -10 -10 -10 ----------- Run | Yrd Mat Min Sub Matter Collected 521 | 200 21 84 216 Remotely . | . . . . Salvage Created 195 | . 21 66 108 Parts 19 | . 1 8 10 Haulers Intercepted . | . . . . Recyclers Shooed . | . . . . Parts Field Recycled . | . . . . Retrieved Matter . | . . . . Parts Self-Destructed 7 | . . . 7 Prevented . | . . . . Kills | -11 -10 -10 -10 ------- Run | Yrd Mat Min Sub Combat Hostiles Destroyed 6 | . . 3 3 Guns 5 | . . 3 2 Cannons 1 | . . . 1 Classes Destroyed 4 | . 1 2 1 Tunneler 1 | . . 1 . Watcher 1 | . 1 . . Swarmer 3 | . . 3 . Subdweller 3 | . . . 3 Best Kill Streak 3 | . 1 3 1 Combat Bots Only 3 | . . 3 1 Max Kills in Single Turn 1 | . 1 1 1 Gunslinging . | . . . . Exploded . | . . . . Melee . | . . . . Uniques/NPCs Destroyed . | . . . . Combat | -11 -10 -10 -10 -------- Run | Yrd Mat Min Sub Hostile Shots Fired 76 | . . 10 66 Missed 21 | . . 4 17 Damage Taken 902 | . 14 55 833 Core 252 | . . 9 243 Absorbed by Shields . | . . . . Core Remaining (%) 100 | 100 . . . Volleys Fired 51 | . 4 9 38 Largest 2 | . 2 2 2 Hottest 123 | . 60 100 123 Shots Fired 88 | . 8 15 65 Gun 73 | . 8 12 53 Cannon . | . . . . Launcher . | . . . . Special 15 | . . 3 12 Kinetic 67 | . 7 12 48 Thermal 21 | . 1 3 17 Explosive . | . . . . Electromagnetic . | . . . . Robot Hit Streak 18 | . 2 2 18 Robot Miss Streak 5 | . 1 1 5 Penetration Max . | . . . . Secondary Targets . | . . . . Shots Hit Robots 54 | . 4 6 44 Core Hits 16 | . 2 4 10 Critical Kills . | . . . . Critical Parts Destroyed . | . . . . Critical Strikes 1 | . . . 1 Burn 1 | . . . 1 Melee Attacks . | . . . . Impact . | . . . . Slashing . | . . . . Piercing . | . . . . Sneak Attacks . | . . . . Combat Hostiles . | . . . . Follow-up Attacks . | . . . . Damage Inflicted 671 | . 55 91 525 Guns 647 | . 55 91 501 Cannons . | . . . . Explosions . | . . . . Melee . | . . . . Ramming . | . . . . Kinetic 607 | . 44 91 472 Thermal 64 | . 11 . 53 Explosive . | . . . . Electromagnetic . | . . . . Impact . | . . . . Slashing . | . . . . Piercing . | . . . . Highest Corruption . | . . . . Average Corruption . | . . . . Corruption Purged . | . . . . Corruption Blocked . | . . . . Overload Shots . | . . . . Overflow Damage . | . . . . Projectiles . | . . . . Explosions . | . . . . Melee . | . . . . Knockbacks . | . . . . Impact . | . . . . Kinetic . | . . . . Secondary . | . . . . Self-Inflicted Damage . | . . . . Shots . | . . . . Rammed . | . . . . Targets Rammed . | . . . . Kicked . | . . . . Crushed . | . . . . Highest Temperature 22 | . 20 22 . Average Temperature 11 | . 15 11 . Received Heat Transfer 105 | . . . 105 Siege Activations . | . . . . Robots Corrupted . | . . . . Combat Hostiles . | . . . . Parts Fried . | . . . . Impact Corruptions . | . . . . Robots Melted . | . . . . Combat Hostiles . | . . . . Parts Melted 1 | . . . 1 Heat Transferred 223 | . 25 . 198 Parts Sabotaged . | . . . . Parts Stolen . | . . . . Parts Stripped . | . . . . Power Chain Reactions . | . . . . Missiles Intercepted . | . . . . Alert | -11 -10 -10 -10 ------- Run | Yrd Mat Min Sub Peak Influence 105 | . 37 105 . Initial 14 | . . 14 . Average 64 | . 22 81 . Maximum Alert Level . | . . . . Low Security (%) 100 | . 100 100 . Level 1 . | . . . . Level 2 . | . . . . Level 3 . | . . . . Level 4 . | . . . . Level 5 . | . . . . High Security . | . . . . Max Security . | . . . . Squads Dispatched 1 | . 1 . . Investigation . | . . . . Extermination . | . . . . Reinforcement 1 | . 1 . . Assault . | . . . . Garrison . | . . . . Intercept . | . . . . Searches Triggered . | . . . . Construction Impeded . | . . . . Haulers Reinforced . | . . . . Active Scanning Responses . | . . . . Cargo Convoy Interrupts . | . . . . Stealth | -11 -10 -10 -10 --------- Run | Yrd Mat Min Sub Distress Signals . | . . . . Communications Jammed . | . . . . Distress Signals . | . . . . Times Spotted 36 | . 2 3 31 Peak Tracking Total 4 | . 2 2 4 Tactical Retreats 2 | . . . 2 Traps | -11 -10 -10 -10 ------- Run | Yrd Mat Min Sub Traps Triggered 1 | . 1 . . Indirectly . | . . . . Trap Hack Attempts . | . . . . Triggered . | . . . . Disarmed . | . . . . Reprogrammed . | . . . . Reused . | . . . . Traps Extracted . | . . . . Installed . | . . . . Triggered . | . . . . Most Traps Carried 2 | . . . 2 Machines | -11 -10 -10 -10 ---------- Run | Yrd Mat Min Sub Machines Disabled 2 | . 1 . 1 Max in Single Turn 1 | . 1 . 1 Machines Repaired . | . . . . Machines Dismantled . | . . . . Machines Sabotaged . | . . . . Overloaded Fab Kills . | . . . . Hacking | -11 -10 -10 -10 --------- Run | Yrd Mat Min Sub Machines Accessed . | . . . . Terminals . | . . . . Fabricators . | . . . . Repair Stations . | . . . . Recycling Units . | . . . . Scanalyzers . | . . . . Garrison Access . | . . . . Total Hacks . | . . . . Successful . | . . . . Failed . | . . . . Catastrophic . | . . . . Database Lockouts . | . . . . Manual . | . . . . Terminals . | . . . . Fabricators . | . . . . Repair Stations . | . . . . Recycling Units . | . . . . Scanalyzers . | . . . . Garrison Access . | . . . . Terminal Hacks . | . . . . Fabricator Hacks . | . . . . Repair Station Hacks . | . . . . Recycling Unit Hacks . | . . . . Scanalyzer . | . . . . Garrison Access Hacks . | . . . . Unauthorized Hacks . | . . . . Terminals . | . . . . Fabricators . | . . . . Repair Stations . | . . . . Recycling Units . | . . . . Scanalyzers . | . . . . Garrison Access . | . . . . Data Cores Recovered . | . . . . Used . | . . . . Hacking Detections . | . . . . Full Trace Events . | . . . . Feedback Events . | . . . . Feedback Blocked . | . . . . Robot Schematics Acquired . | . . . . Robots Built . | . . . . Authchips . | . . . . Time . | . . . . Total Robot Build Rating . | . . . . Part Schematics Acquired . | . . . . Parts Built . | . . . . Authchips . | . . . . Time . | . . . . Total Part Build Rating . | . . . . Parts Repaired . | . . . . Time . | . . . . Parts Recycled . | . . . . Recycled Matter . | . . . . Retrieved Matter . | . . . . Retrieved Components . | . . . . Parts Scanalyzed . | . . . . Part Schematics Acquired . | . . . . Parts Damaged . | . . . . Bothacking | -11 -10 -10 -10 ------------ Run | Yrd Mat Min Sub Used RIF Installer . | . . . . Robots Hacked . | . . . . Non-combat . | . . . . Combat . | . . . . Robot Hacks Applied . | . . . . Relay Couplers Released . | . . . . Fabnet Peak Effective % . | . . . . Robots Rewired . | . . . . Allies Hacked . | . . . . Hacks Repelled . | . . . . Allies | -11 -10 -10 -10 -------- Run | Yrd Mat Min Sub Total Allies 5 | . . 5 . Largest Group 5 | . . 5 5 Highest-Rated Group 85 | . . 85 85 Highest-Rated Ally 31 | . . 31 31 Total Orders . | . . . . Ally Attacks 73 | . . . 73 Total Damage 929 | . . . 929 Kills 10 | . . . 10 Allies Corrupted . | . . . . Allies Melted . | . . . . Intel | -11 -10 -10 -10 ------- Run | Yrd Mat Min Sub Robot Analysis Total . | . . . . Derelict Logs Recovered 1 | . . 1 . Drone Launches . | . . . . Drone Recoveries . | . . . . Exploration | -11 -10 -10 -10 ------------- Run | Yrd Mat Min Sub Turns Passed 997 | . 120 294 583 Spaces Moved 634 | 1 79 201 353 Core . | . . . . Treads . | . . . . Legs 634 | 1 79 201 353 Wheels . | . . . . Hover . | . . . . Flight . | . . . . Fastest Speed 120 | 120 120 120 120 Average Speed 120 | 120 120 120 120 Slowest Speed 120 | 120 120 120 120 Overloaded Moves . | . . . . Propulsion Burnouts . | . . . . Robots Hopped . | . . . . Cave-ins Triggered . | . . . . Exploration Rate (%) 28 | 2 16 59 37 Regions Visited 3 Branch Regions 2 Pre-discovered Areas 2 | . . 1 1 Known Exits Taken . | . . . . Unknown Exits Taken 3 | 1 1 1 . Scrap Searched 10 | . . 1 9 Spaces Dug . | . . . . Terrain Destroyed . | . . . . Melee . | . . . . Projectile . | . . . . AOE . | . . . . Terrain Rammed . | . . . . Walls Destroyed . | . . . . Machines Disabled . | . . . . Actions | -11 -10 -10 -10 --------- Run | Yrd Mat Min Sub Total 757 | . 98 232 427 Wait 24 | . . 19 5 Move 631 | . 78 200 353 Hop . | . . . . Pick Up 13 | . 4 1 8 Fast Attach 6 | . 2 2 2 Attach 2 | . . . 2 Detach 2 | . . 1 1 Swap 9 | . 2 . 7 Drop 19 | . 8 . 11 Fire 51 | . 4 9 38 Melee . | . . . . Ram . | . . . . Kick . | . . . . Crush . | . . . . Escape Stasis . | . . . . Rewire . | . . . . Trap . | . . . . Miscellaneous . | . . . . Route ------- -11/Scrapyard -10/Materials -10/Mines (discovered 2 exits: [*Mat] / [*Sub]) -10/Subcaves (discovered 1 exit: [*Rec]) History --------- Turn | Location | Event 1 | -11/Scrapyard | Discovered new exit (range 0) 1 | -11/Scrapyard | Entered Materials 87 | -10/Materials | Discovered new exit (range 13) 121 | -10/Materials | Entered Mines 271 | -10/Mines | Discovered new exit (range 8) 301 | -10/Mines | Build established: Mutant 349 | -10/Mines | Assisted by bots powering up and referring to "LRC-V3" 413 | -10/Mines | Discovered new exit (range 2) 415 | -10/Mines | Entered Subcaves 415 | -10/Subcaves | Accompanied by 5 allies 420 | -10/Subcaves | Led the pair of lost Derelicts to an unsafe place 443 | -10/Subcaves | Discovered new exit (range 8) 480 | -10/Subcaves | Shifting Twisted Machinery released Sub. Beam Cannon 492 | -10/Subcaves | Shifting Twisted Machinery released Sub. Power Source 690 | -10/Subcaves | A swath of the cavern ceiling suddenly collapsed 927 | -10/Subcaves | Learned location of Zion (-6) 927 | -10/Subcaves | Met a Zionite searching for "candidates" 973 | -10/Subcaves | Core integrity fell below 50% 981 | -10/Subcaves | Core integrity fell below 20% 998 | -10/Subcaves | Destroyed by WW-SOQ(R) with Subdweller Machine Gun Last Messages --------------- 00862_ Searching scrap... 00862_ Found Mak. Light Armor Plating. 00862_ Found 33 Matter. 00866_ Dropped Imp. Assault Rifle. 00866_ Acquired Mak. Shrapnel Gun. 00869_ Acquired 10 matter. 00871_ Dropped Beam Rifle. 00872_ Acquired Flamer. 00877_ Dropped Mak. Light Armor Plating. 00877_ Acquired Mak. Light Armor Plating. 00921_ XR-I0D(z): "She is not going to be happy we haven't found any suitable candidates yet." 00927_ XR-I0D(z): "Hey you! It's really dangerous down here, I feel that you could die at any moment. For your health and safety might I suggest a trip to Zion?" World map updated: -6/Zion. 00974_ Imp. Assault Rifle destroyed. 00987_ 3Y-PPD(R) destroyed. 00990_ Trooper 1a suffers critical hit (Burn). 00991_ Trooper 1a destroyed. Map ----- +----------------------------------------------------+ | ?????????????# ##?## ""###*""###???????????? # | | ?????????????# #?# "####""##??????????????#? | | ????????##??## #?# #?#"""#????????????????? | | ????????# ### ##?# #?#####????????????????? | | ????????# #??# ####??????????????????????? | | ????????## #?####??????????????????????????? | | ?????????# ### # #????????????????????????????? | | ????????## #### #????????????????????????????? | | ???????## ##????????????????????????????? | | ???????# ##?????????????????????????????? | | ???????# ##?????????????????????????????? | | ???????## #??##?????????????????????????? | | ???????## ### ####??????????????????????? | | ?????### #??????????????????????? | | ?????# ???????????????????????? | | ????## #### #### ????????????????????????? | | ??### ##??##??? ?????????????????????????? | | ?## ##??????# ???#####?????????????????? | | ?# ##?????# ##??## ##????????????????? | | ## #?##### #### "#????????????????? | | ### # # "##???????????????? | | ### [= ""###"????????????? | | ??## *R% "" ""??????????? | | ???# # # =%# "" "??????????? | | ???# # # # #?????????? | | ### ######## @ #### " #?????????? | | ??## ##?????# #####???? """??????????? | | ???# #??????##?????????? """???????????? | | ??# ### #????????????????????"????????????? | | ??# ???##### #?????????????????????????????????? | | ?# ????????####?????????????????????????????????? | | ?#???????????????????????????????????????????????? | | ?????????????????????????????????????????????????? | | ?????????????????????????????????????????????????? | | ?????????????????????????????????????????????????? | | ?????????????????????????????????????????????????? | | ?????????????????????????????????????????????????? | | ?????????????????????????????????????????????????? | | ?????????????????????????????????????????????????? | | ?????????????????????????????????????????????????? | | ?????????????????????????????????????????????????? | | ?????????????????????????????????????????????????? | | ?????????????????????????????????????????????????? | | ?????????????????????????????????????????????????? | | ?????????????????????????????????????????????????? | | ?????????????????????????????????????????????????? | | ?????????????????????????????????????????????????? | | ?????????????????????????????????????????????????? | | ?????????????????????????????????????????????????? | | ?????????????????????????????????????????????????? | +----------------------------------------------------+ Best States ------------- Heat Dissipation 39 Energy Generation 18 Energy Capacity 250 Matter Stores 300 Matter Capacity 300 Sight Range 16 Terrain Scan Density 10 Evasion (%) 55 Item Schematics ----------------- None Robot Schematics ------------------ None Fabricated ------------ Nothing Alien Tech Used ----------------- None Achievements -------------- None Challenges ------------ None Game ------ Seed AntimissileGammaLance Manual? 0 Play Time 00:10:16 Cumulative 567.9 hours Start 2024.01.05 @ 16:34:17 End 2024.01.05 @ 16:40:33 Sessions 1 Manual Loads 0 Difficulty Rogue Special Mode None Game No. 457 Rogue 185 Adventurer 122 Explorer 150 Win Type - Total 25 Types 19/0/4/1/0/0/0/1/0 Lore% 77 Gallery% 90 Achievement% 75 Wizard Run 0 Options --------- ASCII 0 Keyboard 1 Movement Numpad Keybinds 0 Fullscreen 2 Font 18/X11Bold Map View 76x50 Zoom Use 0% Tactical HUD 1 Map Filters NONE Filters NONE Steam 1 RUN: b901f1b1-3c1d-49e6-900b-ce5dc3c43496